[Event "Titled Tuesday Blitz October 11 Early 2022"]
[White "Carrasco Miranda, Andres"]
[Black "Rozen, Eytan"]
[WhiteFideId "3405990"]
[BlackFideId "2816750"]
[WhiteElo "2183"]
[BlackElo "2362"]
[Result "0-1"]
[Round "02"]
[TimeControl "180+1"]
[Date "2022.10.12"]
[WhiteClock "0:00:13"]
[BlackClock "0:01:00"]

1. d4 {[%clk 0:03:00]}  d5 {[%clk 0:02:55]} 2. c4 {[%clk 0:03:00]}  c5 {[%clk 0:02:54]} 3. Nf3 {[%clk 0:02:58]}  Nf6 {[%clk 0:02:48]} 4. cxd5 {[%clk 0:02:58]}  cxd4 {[%clk 0:02:48]} 5. Nxd4 {[%clk 0:02:54]}  Nxd5 {[%clk 0:02:44]} 6. Nb5 {[%clk 0:02:50]}  e6 {[%clk 0:02:41]} 7. N1c3 {[%clk 0:02:50]}  a6 {[%clk 0:02:36]} 8. Nxd5 {[%clk 0:02:47]}  axb5 {[%clk 0:02:34]} 9. Nc3 {[%clk 0:02:43]}  Qa5 {[%clk 0:02:27]} 10. e4 {[%clk 0:02:19]}  b4 {[%clk 0:02:27]} 11. Nb5 {[%clk 0:02:18]}  Bd7 {[%clk 0:02:19]} 12. Nd6+ {[%clk 0:02:15]}  Bxd6 {[%clk 0:02:19]} 13. Qxd6 {[%clk 0:02:16]}  b3+ {[%clk 0:02:19]} 14. Bd2 {[%clk 0:02:15]}  Qxa2 {[%clk 0:02:13]} 15. Rc1 {[%clk 0:01:24]}  Qxb2 {[%clk 0:02:11]} 16. Bc4 {[%clk 0:01:00]}  Qa3 {[%clk 0:02:05]} 17. Qd4 {[%clk 0:00:44]}  O-O {[%clk 0:01:30]} 18. O-O {[%clk 0:00:39]}  e5 {[%clk 0:01:13]} 19. Qxe5 {[%clk 0:00:31]}  Nc6 {[%clk 0:01:13]} 20. Qg3 {[%clk 0:00:31]}  b2 {[%clk 0:01:08]} 21. Bc3 {[%clk 0:00:27]}  Nd4 {[%clk 0:00:59]} 22. Rb1 {[%clk 0:00:17]}  Be6 {[%clk 0:00:58]} 23. Bxe6 {[%clk 0:00:13]}  Ne2+ {[%clk 0:00:58]} 24. Kh1 {[%clk 0:00:12]}  Nxg3+ {[%clk 0:00:59]} 25. hxg3 {[%clk 0:00:13]}  Qxc3 {[%clk 0:01:00]} 0-1


[Site "https://www.chess.com"]

[Event "Titled Tuesday Blitz October 11 Early 2022"]
[White "Chigaev, Maksim"]
[Black "Girsh, Daniel"]
[WhiteFideId "4108116"]
[BlackFideId "30949190"]
[WhiteElo "2537"]
[BlackElo "2075"]
[Result "1-0"]
[Round "02"]
[TimeControl "180+1"]
[Date "2022.10.12"]
[WhiteClock "0:00:19"]
[BlackClock "0:00:26"]

1. Nf3 {[%clk 0:03:00]}  d5 {[%clk 0:02:57]} 2. c4 {[%clk 0:03:00]}  e6 {[%clk 0:02:57]} 3. g3 {[%clk 0:03:01]}  Nf6 {[%clk 0:02:58]} 4. Bg2 {[%clk 0:03:01]}  Be7 {[%clk 0:02:58]} 5. O-O {[%clk 0:03:02]}  O-O {[%clk 0:02:59]} 6. b3 {[%clk 0:03:03]}  c5 {[%clk 0:02:59]} 7. cxd5 {[%clk 0:03:02]}  Nxd5 {[%clk 0:02:59]} 8. Nc3 {[%clk 0:03:02]}  Nc6 {[%clk 0:02:56]} 9. Bb2 {[%clk 0:03:02]}  b6 {[%clk 0:02:56]} 10. Nxd5 {[%clk 0:02:55]}  exd5 {[%clk 0:02:56]} 11. d4 {[%clk 0:02:55]}  Re8 {[%clk 0:02:53]} 12. Rc1 {[%clk 0:02:53]}  Ba6 {[%clk 0:02:48]} 13. Re1 {[%clk 0:02:53]}  Rc8 {[%clk 0:02:47]} 14. Bh3 {[%clk 0:02:47]}  Rc7 {[%clk 0:02:45]} 15. dxc5 {[%clk 0:02:44]}  Bxc5 {[%clk 0:02:44]} 16. a3 {[%clk 0:02:39]}  h6 {[%clk 0:01:58]} 17. e3 {[%clk 0:02:29]}  Bc8 {[%clk 0:01:52]} 18. Bxc8 {[%clk 0:02:20]}  Rxc8 {[%clk 0:01:53]} 19. b4 {[%clk 0:02:20]}  Be7 {[%clk 0:01:51]} 20. Qa4 {[%clk 0:02:15]}  Qd7 {[%clk 0:01:43]} 21. Red1 {[%clk 0:02:01]}  Qb7 {[%clk 0:01:40]} 22. Qb5 {[%clk 0:01:51]}  Red8 {[%clk 0:01:20]} 23. Qd3 {[%clk 0:01:33]}  a6 {[%clk 0:01:14]} 24. Qf5 {[%clk 0:01:31]}  Bf8 {[%clk 0:01:07]} 25. Qg4 {[%clk 0:01:18]}  Ne7 {[%clk 0:00:54]} 26. Bf6 {[%clk 0:01:13]}  Rxc1 {[%clk 0:00:49]} 27. Rxc1 {[%clk 0:01:14]}  Rc8 {[%clk 0:00:49]} 28. Rxc8 {[%clk 0:01:07]}  Nxc8 {[%clk 0:00:47]} 29. Bb2 {[%clk 0:01:02]}  Qc6 {[%clk 0:00:47]} 30. Nd4 {[%clk 0:00:56]}  Qc4 {[%clk 0:00:47]} 31. h3 {[%clk 0:00:52]}  Nd6 {[%clk 0:00:47]} 32. Nf5 {[%clk 0:00:46]}  Nxf5 {[%clk 0:00:44]} 33. Qxf5 {[%clk 0:00:45]}  Qb3 {[%clk 0:00:42]} 34. Qb1 {[%clk 0:00:36]}  Be7 {[%clk 0:00:41]} 35. Qa1 {[%clk 0:00:35]}  Bf8 {[%clk 0:00:38]} 36. Bd4 {[%clk 0:00:35]}  b5 {[%clk 0:00:38]} 37. g4 {[%clk 0:00:29]}  Qd3 {[%clk 0:00:37]} 38. Qc3 {[%clk 0:00:25]}  Qc4 {[%clk 0:00:35]} 39. Kg2 {[%clk 0:00:25]}  f6 {[%clk 0:00:33]} 40. h4 {[%clk 0:00:23]}  Kf7 {[%clk 0:00:33]} 41. h5 {[%clk 0:00:24]}  Bd6 {[%clk 0:00:33]} 42. Qb2 {[%clk 0:00:23]}  Qd3 {[%clk 0:00:31]} 43. Qc1 {[%clk 0:00:19]}  Qc4 {[%clk 0:00:31]} 44. Qb1 {[%clk 0:00:19]}  Be7 {[%clk 0:00:26]} 45. Qg6+ {[%clk 0:00:14]}  Kf8 {[%clk 0:00:26]} 46. g5 {[%clk 0:00:13]}  hxg5 {[%clk 0:00:20]} 47. h6 {[%clk 0:00:11]}  gxh6 {[%clk 0:00:20]} 48. Qxh6+ {[%clk 0:00:12]}  Kf7 {[%clk 0:00:20]} 49. Qh7+ {[%clk 0:00:12]}  Ke6 {[%clk 0:00:20]} 50. Qg8+ {[%clk 0:00:11]}  Kd7 {[%clk 0:00:21]} 51. Qa8 {[%clk 0:00:11]}  Qc6 {[%clk 0:00:21]} 52. Qa7+ {[%clk 0:00:10]}  Qc7 {[%clk 0:00:21]} 53. Qxa6 {[%clk 0:00:09]}  Qc6 {[%clk 0:00:22]} 54. Qa7+ {[%clk 0:00:09]}  Ke6 {[%clk 0:00:22]} 55. Qb8 {[%clk 0:00:07]}  Qd6 {[%clk 0:00:21]} 56. Qxb5 {[%clk 0:00:06]}  g4 {[%clk 0:00:21]} 57. Qe8 {[%clk 0:00:03]}  Kf5 {[%clk 0:00:17]} 58. Qh5+ {[%clk 0:00:03]}  Ke6 {[%clk 0:00:16]} 59. Qxg4+ {[%clk 0:00:04]}  Kf7 {[%clk 0:00:17]} 60. Qf5 {[%clk 0:00:04]}  Qc6 {[%clk 0:00:17]} 61. a4 {[%clk 0:00:04]}  Bd8 {[%clk 0:00:17]} 62. b5 {[%clk 0:00:04]}  Qd6 {[%clk 0:00:18]} 63. b6 {[%clk 0:00:05]}  Bc7 {[%clk 0:00:18]} 64. bxc7 {[%clk 0:00:05]}  Qxc7 {[%clk 0:00:18]} 65. Qxd5+ {[%clk 0:00:05]}  Ke8 {[%clk 0:00:19]} 66. Qf5 {[%clk 0:00:05]}  Ke7 {[%clk 0:00:19]} 67. Qxf6+ {[%clk 0:00:05]}  Ke8 {[%clk 0:00:19]} 68. Qh8+ {[%clk 0:00:06]}  Kd7 {[%clk 0:00:19]} 69. Qg7+ {[%clk 0:00:07]}  Kc8 {[%clk 0:00:20]} 70. Qxc7+ {[%clk 0:00:07]}  Kxc7 {[%clk 0:00:21]} 71. e4 {[%clk 0:00:08]}  Kc6 {[%clk 0:00:21]} 72. Kf3 {[%clk 0:00:09]}  Kd6 {[%clk 0:00:21]} 73. Ke3 {[%clk 0:00:10]}  Ke6 {[%clk 0:00:22]} 74. f3 {[%clk 0:00:11]}  Kd6 {[%clk 0:00:23]} 75. f4 {[%clk 0:00:11]}  Kc6 {[%clk 0:00:24]} 76. f5 {[%clk 0:00:12]}  Kd6 {[%clk 0:00:24]} 77. Kf4 {[%clk 0:00:13]}  Kd7 {[%clk 0:00:23]} 78. Be5 {[%clk 0:00:14]}  Ke7 {[%clk 0:00:24]} 79. f6+ {[%clk 0:00:15]}  Ke6 {[%clk 0:00:24]} 80. a5 {[%clk 0:00:16]}  Kf7 {[%clk 0:00:24]} 81. a6 {[%clk 0:00:17]}  Ke6 {[%clk 0:00:24]} 82. a7 {[%clk 0:00:18]}  Kf7 {[%clk 0:00:25]} 83. a8=Q {[%clk 0:00:18]}  Ke6 {[%clk 0:00:26]} 84. Qd5# {[%clk 0:00:19]} 1-0


[Site "https://www.chess.com"]

[Event "Titled Tuesday Blitz October 11 Early 2022"]
[White "Ciuffoletti, Paolo"]
[Black "Jovic, Stanoje"]
[WhiteFideId "807630"]
[BlackFideId "905020"]
[WhiteElo "2143"]
[BlackElo "2238"]
[Result "0-1"]
[Round "02"]
[TimeControl "180+1"]
[Date "2022.10.12"]
[WhiteClock "0:00:54"]
[BlackClock "0:01:20"]

1. e4 {[%clk 0:02:59]}  c6 {[%clk 0:03:00]} 2. d4 {[%clk 0:02:58]}  d5 {[%clk 0:03:00]} 3. exd5 {[%clk 0:02:59]}  cxd5 {[%clk 0:03:00]} 4. c4 {[%clk 0:02:59]}  Nf6 {[%clk 0:02:59]} 5. Nc3 {[%clk 0:02:59]}  Nc6 {[%clk 0:02:58]} 6. Nf3 {[%clk 0:02:59]}  Bg4 {[%clk 0:02:58]} 7. cxd5 {[%clk 0:02:59]}  Nxd5 {[%clk 0:02:58]} 8. Qb3 {[%clk 0:02:59]}  Bxf3 {[%clk 0:02:58]} 9. gxf3 {[%clk 0:02:59]}  Nb6 {[%clk 0:02:58]} 10. Be3 {[%clk 0:02:57]}  e6 {[%clk 0:02:56]} 11. O-O-O {[%clk 0:02:56]}  Be7 {[%clk 0:02:56]} 12. Kb1 {[%clk 0:02:47]}  O-O {[%clk 0:02:55]} 13. d5 {[%clk 0:02:47]}  exd5 {[%clk 0:02:55]} 14. Nxd5 {[%clk 0:02:46]}  Nxd5 {[%clk 0:02:55]} 15. Rxd5 {[%clk 0:02:46]}  Qc7 {[%clk 0:02:55]} 16. f4 {[%clk 0:02:41]}  Rfd8 {[%clk 0:02:48]} 17. Bg2 {[%clk 0:02:38]}  Rxd5 {[%clk 0:02:47]} 18. Bxd5 {[%clk 0:02:36]}  Bf6 {[%clk 0:02:47]} 19. Rc1 {[%clk 0:02:32]}  g6 {[%clk 0:02:39]} 20. f5 {[%clk 0:02:21]}  Kg7 {[%clk 0:02:28]} 21. fxg6 {[%clk 0:02:10]}  hxg6 {[%clk 0:02:27]} 22. Qc4 {[%clk 0:01:58]}  Qe5 {[%clk 0:02:17]} 23. Rc2 {[%clk 0:01:46]}  Nb4 {[%clk 0:02:07]} 24. Qxb4 {[%clk 0:01:28]}  Qxd5 {[%clk 0:02:06]} 25. a3 {[%clk 0:01:22]}  b6 {[%clk 0:02:01]} 26. Rd2 {[%clk 0:01:12]}  Qh1+ {[%clk 0:01:58]} 27. Ka2 {[%clk 0:01:12]}  Qxh2 {[%clk 0:01:58]} 28. Rd7 {[%clk 0:01:11]}  Qe5 {[%clk 0:01:23]} 29. Bd4 {[%clk 0:00:54]}  Qe6+ {[%clk 0:01:20]} 0-1


[Site "https://www.chess.com"]

[Event "Titled Tuesday Blitz October 11 Early 2022"]
[White "Costachi, Mihnea"]
[Black "Buscar, Michael"]
[WhiteFideId "1217518"]
[BlackFideId "2603616"]
[WhiteElo "2437"]
[BlackElo "2010"]
[Result "1-0"]
[Round "02"]
[TimeControl "180+1"]
[Date "2022.10.12"]
[WhiteClock "0:01:22"]
[BlackClock "0:00:01"]

1. e4 {[%clk 0:03:00]}  c5 {[%clk 0:02:59]} 2. Nf3 {[%clk 0:02:59]}  Nc6 {[%clk 0:02:58]} 3. b3 {[%clk 0:02:59]}  Nf6 {[%clk 0:02:57]} 4. e5 {[%clk 0:02:56]}  Nd5 {[%clk 0:02:57]} 5. Bb2 {[%clk 0:02:56]}  Nc7 {[%clk 0:02:57]} 6. Be2 {[%clk 0:02:52]}  Ne6 {[%clk 0:02:57]} 7. O-O {[%clk 0:02:51]}  g6 {[%clk 0:02:57]} 8. c3 {[%clk 0:02:50]}  Bg7 {[%clk 0:02:57]} 9. d4 {[%clk 0:02:50]}  d5 {[%clk 0:02:55]} 10. Na3 {[%clk 0:02:30]}  O-O {[%clk 0:02:53]} 11. Nc2 {[%clk 0:02:31]}  cxd4 {[%clk 0:02:34]} 12. cxd4 {[%clk 0:02:30]}  f6 {[%clk 0:02:34]} 13. Ne3 {[%clk 0:02:25]}  Nf4 {[%clk 0:02:18]} 14. Re1 {[%clk 0:02:23]}  Bg4 {[%clk 0:01:54]} 15. h3 {[%clk 0:02:11]}  Nxe2+ {[%clk 0:01:42]} 16. Qxe2 {[%clk 0:02:08]}  Bxf3 {[%clk 0:01:30]} 17. Qxf3 {[%clk 0:02:08]}  fxe5 {[%clk 0:01:30]} 18. Qxd5+ {[%clk 0:02:08]}  Qxd5 {[%clk 0:01:30]} 19. Nxd5 {[%clk 0:02:09]}  exd4 {[%clk 0:01:27]} 20. Nxe7+ {[%clk 0:02:09]}  Nxe7 {[%clk 0:01:25]} 21. Rxe7 {[%clk 0:02:10]}  Rf7 {[%clk 0:01:26]} 22. Rae1 {[%clk 0:02:08]}  Raf8 {[%clk 0:01:22]} 23. Rxf7 {[%clk 0:02:05]}  Kxf7 {[%clk 0:01:20]} 24. Kf1 {[%clk 0:02:02]}  Rd8 {[%clk 0:01:12]} 25. Rd1 {[%clk 0:02:01]}  Rd7 {[%clk 0:01:11]} 26. Ke1 {[%clk 0:01:59]}  Ke6 {[%clk 0:01:11]} 27. Kd2 {[%clk 0:01:59]}  Kd5 {[%clk 0:01:09]} 28. Re1 {[%clk 0:01:56]}  Rc7 {[%clk 0:01:05]} 29. Kd3 {[%clk 0:01:55]}  Rf7 {[%clk 0:01:02]} 30. f3 {[%clk 0:01:54]}  Rd7 {[%clk 0:00:40]} 31. Re4 {[%clk 0:01:51]}  Kc5 {[%clk 0:00:38]} 32. a3 {[%clk 0:01:51]}  a5 {[%clk 0:00:37]} 33. Re8 {[%clk 0:01:46]}  b6 {[%clk 0:00:34]} 34. Rc8+ {[%clk 0:01:45]}  Kd5 {[%clk 0:00:30]} 35. Rc4 {[%clk 0:01:45]}  Ke5 {[%clk 0:00:12]} 36. Rc6 {[%clk 0:01:45]}  Kf4 {[%clk 0:00:09]} 37. Rxb6 {[%clk 0:01:31]}  Kg3 {[%clk 0:00:09]} 38. Rb5 {[%clk 0:01:32]}  Kxg2 {[%clk 0:00:09]} 39. h4 {[%clk 0:01:32]}  Re7 {[%clk 0:00:06]} 40. h5 {[%clk 0:01:26]}  Re3+ {[%clk 0:00:04]} 41. Kd2 {[%clk 0:01:26]}  gxh5 {[%clk 0:00:02]} 42. Rg5+ {[%clk 0:01:25]}  Kxf3 {[%clk 0:00:01]} 43. Rxg7 {[%clk 0:01:26]}  Rxb3 {[%clk 0:00:01]} 44. Kc2 {[%clk 0:01:22]} 1-0


[Site "https://www.chess.com"]

[Event "Titled Tuesday Blitz October 11 Early 2022"]
[White "Cruz Lledo, Pablo"]
[Black "Abdisalimov, Abdimalik"]
[WhiteFideId "2297361"]
[BlackFideId "14206323"]
[WhiteElo "2304"]
[BlackElo "2401"]
[Result "0-1"]
[Round "02"]
[TimeControl "180+1"]
[Date "2022.10.11"]
[WhiteClock "0:00:04"]
[BlackClock "0:00:14"]

1. d4 {[%clk 0:03:00]}  Nf6 {[%clk 0:02:58]} 2. c4 {[%clk 0:03:00]}  e6 {[%clk 0:02:56]} 3. Nc3 {[%clk 0:02:59]}  Bb4 {[%clk 0:02:55]} 4. e3 {[%clk 0:02:53]}  c5 {[%clk 0:02:54]} 5. Nf3 {[%clk 0:02:51]}  b6 {[%clk 0:02:48]} 6. Be2 {[%clk 0:02:39]}  Bxc3+ {[%clk 0:02:45]} 7. bxc3 {[%clk 0:02:38]}  Nc6 {[%clk 0:02:45]} 8. O-O {[%clk 0:02:33]}  d6 {[%clk 0:02:43]} 9. Nd2 {[%clk 0:02:29]}  Na5 {[%clk 0:02:39]} 10. e4 {[%clk 0:02:21]}  Ba6 {[%clk 0:02:37]} 11. e5 {[%clk 0:02:20]}  dxe5 {[%clk 0:02:32]} 12. dxe5 {[%clk 0:02:20]}  Nd7 {[%clk 0:02:32]} 13. Ne4 {[%clk 0:02:18]}  Nxe5 {[%clk 0:02:12]} 14. Qc2 {[%clk 0:02:02]}  O-O {[%clk 0:02:07]} 15. Bf4 {[%clk 0:02:01]}  Ng6 {[%clk 0:02:00]} 16. Bd6 {[%clk 0:01:54]}  Re8 {[%clk 0:01:56]} 17. Rad1 {[%clk 0:01:54]}  f5 {[%clk 0:01:39]} 18. Bg3 {[%clk 0:01:16]}  Qe7 {[%clk 0:01:26]} 19. Nd6 {[%clk 0:01:14]}  f4 {[%clk 0:01:17]} 20. Nxe8 {[%clk 0:01:10]}  Rxe8 {[%clk 0:01:18]} 21. Bh5 {[%clk 0:01:01]}  fxg3 {[%clk 0:01:18]} 22. Bxg6 {[%clk 0:01:01]}  gxh2+ {[%clk 0:01:16]} 23. Kh1 {[%clk 0:01:02]}  hxg6 {[%clk 0:01:17]} 24. Qxg6 {[%clk 0:01:02]}  Bxc4 {[%clk 0:01:10]} 25. Rfe1 {[%clk 0:01:02]}  Qf7 {[%clk 0:01:09]} 26. Qg3 {[%clk 0:00:50]}  Bxa2 {[%clk 0:01:05]} 27. Re3 {[%clk 0:00:47]}  Bd5 {[%clk 0:01:04]} 28. Qh4 {[%clk 0:00:45]}  Nc4 {[%clk 0:00:52]} 29. Rh3 {[%clk 0:00:44]}  Qf6 {[%clk 0:00:50]} 30. Qh5 {[%clk 0:00:40]}  Rd8 {[%clk 0:00:31]} 31. Kxh2 {[%clk 0:00:33]}  Qe5+ {[%clk 0:00:30]} 32. Qxe5 {[%clk 0:00:25]}  Nxe5 {[%clk 0:00:30]} 33. Rh4 {[%clk 0:00:26]}  c4 {[%clk 0:00:25]} 34. Kg3 {[%clk 0:00:23]}  b5 {[%clk 0:00:22]} 35. Ra1 {[%clk 0:00:22]}  Rd7 {[%clk 0:00:22]} 36. Rd4 {[%clk 0:00:21]}  Nc6 {[%clk 0:00:21]} 37. Rd2 {[%clk 0:00:20]}  a5 {[%clk 0:00:22]} 38. f4 {[%clk 0:00:19]}  b4 {[%clk 0:00:22]} 39. f5 {[%clk 0:00:18]}  b3 {[%clk 0:00:20]} 40. Kf4 {[%clk 0:00:16]}  exf5 {[%clk 0:00:19]} 41. Rad1 {[%clk 0:00:16]}  Ne7 {[%clk 0:00:18]} 42. Ra1 {[%clk 0:00:16]}  Ra7 {[%clk 0:00:17]} 43. Ke5 {[%clk 0:00:16]}  a4 {[%clk 0:00:17]} 44. Ra3 {[%clk 0:00:12]}  Kf7 {[%clk 0:00:16]} 45. Kd6 {[%clk 0:00:12]}  Be4 {[%clk 0:00:15]} 46. Kc5 {[%clk 0:00:10]}  Rc7+ {[%clk 0:00:15]} 47. Kb5 {[%clk 0:00:09]}  Nd5 {[%clk 0:00:15]} 48. Kxa4 {[%clk 0:00:05]}  Nxc3+ {[%clk 0:00:15]} 49. Kb4 {[%clk 0:00:06]}  Nb1 {[%clk 0:00:16]} 50. Rxb3 {[%clk 0:00:04]}  cxb3 {[%clk 0:00:14]} 0-1


[Site "https://www.chess.com"]

[Event "Titled Tuesday Blitz October 11 Early 2022"]
[White "Csonka, Balazs"]
[Black "Tologon tegin, Semetei"]
[WhiteFideId "742910"]
[BlackFideId "13800574"]
[WhiteElo "2404"]
[BlackElo "2282"]
[Result "1-0"]
[Round "02"]
[TimeControl "180+1"]
[Date "2022.10.12"]
[WhiteClock "0:00:04"]
[BlackClock "0:00:01"]

1. d4 {[%clk 0:03:00]}  Nf6 {[%clk 0:02:56]} 2. c4 {[%clk 0:02:57]}  e6 {[%clk 0:02:51]} 3. g3 {[%clk 0:02:56]}  Bb4+ {[%clk 0:02:46]} 4. Nd2 {[%clk 0:02:51]}  d5 {[%clk 0:02:41]} 5. Bg2 {[%clk 0:02:51]}  O-O {[%clk 0:02:41]} 6. Nf3 {[%clk 0:02:51]}  dxc4 {[%clk 0:02:40]} 7. Qc2 {[%clk 0:02:51]}  c5 {[%clk 0:02:39]} 8. dxc5 {[%clk 0:02:45]}  c3 {[%clk 0:02:37]} 9. bxc3 {[%clk 0:02:41]}  Bxc5 {[%clk 0:02:17]} 10. O-O {[%clk 0:02:37]}  Nc6 {[%clk 0:02:08]} 11. Nb3 {[%clk 0:02:19]}  Be7 {[%clk 0:02:05]} 12. Nfd4 {[%clk 0:02:04]}  Bd7 {[%clk 0:02:03]} 13. Rd1 {[%clk 0:01:54]}  Qb6 {[%clk 0:02:01]} 14. Be3 {[%clk 0:01:24]}  Qa6 {[%clk 0:02:00]} 15. a4 {[%clk 0:01:24]}  Rac8 {[%clk 0:01:56]} 16. Nb5 {[%clk 0:01:20]}  Rfd8 {[%clk 0:01:50]} 17. Qb2 {[%clk 0:01:05]}  b6 {[%clk 0:01:44]} 18. c4 {[%clk 0:00:51]}  Be8 {[%clk 0:01:34]} 19. Rxd8 {[%clk 0:00:40]}  Nxd8 {[%clk 0:01:29]} 20. a5 {[%clk 0:00:39]}  Bxb5 {[%clk 0:00:35]} 21. axb6 {[%clk 0:00:39]}  axb6 {[%clk 0:00:33]} 22. Rxa6 {[%clk 0:00:36]}  Bxa6 {[%clk 0:00:34]} 23. Nd2 {[%clk 0:00:27]}  Bxc4 {[%clk 0:00:18]} 24. Nxc4 {[%clk 0:00:28]}  Rxc4 {[%clk 0:00:18]} 25. Bxb6 {[%clk 0:00:26]}  Nc6 {[%clk 0:00:17]} 26. Be3 {[%clk 0:00:20]}  h6 {[%clk 0:00:16]} 27. h3 {[%clk 0:00:19]}  Nb4 {[%clk 0:00:08]} 28. Qb3 {[%clk 0:00:17]}  Rc2 {[%clk 0:00:07]} 29. Bf3 {[%clk 0:00:13]}  Nfd5 {[%clk 0:00:05]} 30. Bd4 {[%clk 0:00:11]}  Rc1+ {[%clk 0:00:04]} 31. Kg2 {[%clk 0:00:10]}  Rc8 {[%clk 0:00:04]} 32. Qb2 {[%clk 0:00:08]}  Bf8 {[%clk 0:00:03]} 33. Qd2 {[%clk 0:00:08]}  Nc6 {[%clk 0:00:02]} 34. Bb2 {[%clk 0:00:07]}  Ndb4 {[%clk 0:00:01]} 35. h4 {[%clk 0:00:04]}  Ne7 {[%clk 0:00:01]} 36. Qxb4 {[%clk 0:00:03]}  Nd5 {[%clk 0:00:01]} 37. Qd2 {[%clk 0:00:04]} 1-0


[Site "https://www.chess.com"]

[Event "Titled Tuesday Blitz October 11 Early 2022"]
[White "Demin, Vladimir"]
[Black "Ohanyan, Emin"]
[WhiteFideId "4167457"]
[BlackFideId "13312022"]
[WhiteElo "2571"]
[BlackElo "2302"]
[Result "0-1"]
[Round "02"]
[TimeControl "180+1"]
[Date "2022.10.12"]
[WhiteClock "0:00:01"]
[BlackClock "0:01:13"]

1. d4 {[%clk 0:03:00]}  d5 {[%clk 0:02:58]} 2. Bf4 {[%clk 0:03:00]}  e6 {[%clk 0:02:54]} 3. e3 {[%clk 0:02:59]}  Bd6 {[%clk 0:02:54]} 4. Qf3 {[%clk 0:02:58]}  Nc6 {[%clk 0:02:49]} 5. Nc3 {[%clk 0:02:53]}  Nge7 {[%clk 0:02:42]} 6. O-O-O {[%clk 0:02:49]}  e5 {[%clk 0:02:40]} 7. dxe5 {[%clk 0:02:48]}  Nxe5 {[%clk 0:02:40]} 8. Qg3 {[%clk 0:02:46]}  Nf5 {[%clk 0:02:38]} 9. Qh3 {[%clk 0:02:39]}  c6 {[%clk 0:01:42]} 10. g4 {[%clk 0:02:00]}  Ne7 {[%clk 0:01:30]} 11. Qg3 {[%clk 0:01:54]}  N7g6 {[%clk 0:01:26]} 12. f3 {[%clk 0:01:18]}  Nxf4 {[%clk 0:01:24]} 13. exf4 {[%clk 0:01:17]}  Ng6 {[%clk 0:01:25]} 14. Re1+ {[%clk 0:01:10]}  Be6 {[%clk 0:01:23]} 15. Nh3 {[%clk 0:00:49]}  Qc7 {[%clk 0:01:20]} 16. Ne2 {[%clk 0:00:48]}  O-O-O {[%clk 0:01:18]} 17. Kb1 {[%clk 0:00:42]}  Kb8 {[%clk 0:01:16]} 18. Bg2 {[%clk 0:00:41]}  h5 {[%clk 0:01:15]} 19. Rhf1 {[%clk 0:00:37]}  h4 {[%clk 0:01:16]} 20. Qf2 {[%clk 0:00:37]}  Nxf4 {[%clk 0:01:17]} 21. Nhxf4 {[%clk 0:00:29]}  Bxf4 {[%clk 0:01:17]} 22. h3 {[%clk 0:00:25]}  Rhe8 {[%clk 0:01:16]} 23. Qd4 {[%clk 0:00:23]}  Bg3 {[%clk 0:01:14]} 24. Nxg3 {[%clk 0:00:17]}  Qxg3 {[%clk 0:01:15]} 25. Qd2 {[%clk 0:00:16]}  g5 {[%clk 0:01:12]} 26. Re2 {[%clk 0:00:16]}  f6 {[%clk 0:01:10]} 27. Rfe1 {[%clk 0:00:16]}  Bd7 {[%clk 0:01:10]} 28. Rxe8 {[%clk 0:00:16]}  Rxe8 {[%clk 0:01:11]} 29. Rxe8+ {[%clk 0:00:16]}  Bxe8 {[%clk 0:01:12]} 30. Qe2 {[%clk 0:00:16]}  Qe5 {[%clk 0:01:13]} 31. Qd2 {[%clk 0:00:15]}  d4 {[%clk 0:01:12]} 32. b3 {[%clk 0:00:14]}  c5 {[%clk 0:01:13]} 33. Bf1 {[%clk 0:00:14]}  Bc6 {[%clk 0:01:13]} 34. Qd1 {[%clk 0:00:11]}  Qe3 {[%clk 0:01:12]} 35. Be2 {[%clk 0:00:10]}  b5 {[%clk 0:01:13]} 36. Qf1 {[%clk 0:00:08]}  a6 {[%clk 0:01:10]} 37. Kb2 {[%clk 0:00:05]}  Kc7 {[%clk 0:01:10]} 38. Kb1 {[%clk 0:00:05]}  Kb6 {[%clk 0:01:10]} 39. Kb2 {[%clk 0:00:02]}  Bd5 {[%clk 0:01:11]} 40. a3 {[%clk 0:00:02]}  c4 {[%clk 0:01:11]} 41. bxc4 {[%clk 0:00:02]}  bxc4 {[%clk 0:01:12]} 42. Kb1 {[%clk 0:00:02]}  Kc5 {[%clk 0:01:12]} 43. Qd1 {[%clk 0:00:01]}  Qxa3 {[%clk 0:01:12]} 44. Qe1 {[%clk 0:00:01]}  c3 {[%clk 0:01:13]} 0-1


[Site "https://www.chess.com"]